bitfinex-derivatives/quotes_SOLF0:USTF0_20220102
["timestamp","ask_amount","ask_price","bid_price","bid_amount"]
[1641088576296,3.98133625,177.81,177.79,9.37457649]
[1641088576794,3.98133625,177.81,177.79,4.49957649]
[1641088576995,8.11130181,177.83,177.79,4.49957649]
[1641088577796,3.98133544,177.81,177.79,4.49957649]
[1641088578695,5.62271577,177.84,177.79,4.49957649]
[1641088578896,2.37267466,177.83,177.79,4.49957649]
[1641088579596,3.98133421,177.81,177.79,4.49957649]
[1641088580195,2.37267466,177.83,177.79,4.49957649]
[1641088580797,2.37267466,177.83,177.81,4.49904648]
[1641088581397,2.37267466,177.83,177.81,8.99802826]
[1641088587004,2.37267466,177.83,177.81,15.76902826]
[1641088589010,14.30802105,177.83,177.81,15.76902826]
[1641088589409,11.93534639,177.83,177.81,15.76902826]
[1641088590409,14.30802105,177.83,177.81,15.76902826]
[1641088591712,14.30802105,177.83,177.81,8.99802826]
[1641088593014,14.30802105,177.83,177.81,4.49898178]
[1641088593415,27.66479,177.82,177.81,4.49898178]
[1641088593617,27.66479,177.82,177.76,6.48063648]
[1641088593815,27.66479,177.82,177.78,4.49985375]
[1641088594616,14.33305559,177.81,177.78,4.49985375]
[1641088596817,2.37267466,177.81,177.78,4.49985375]
[1641088598319,11.96038093,177.82,177.78,4.49985375]
[1641088598918,27.66479,177.81,177.78,4.49985375]
[1641088599120,11.96038093,177.8,177.74,35.44406259]
[1641088599517,17.58436158,177.8,177.74,35.44406259]
[1641088600318,5.62398065,177.8,177.74,35.44406259]
[1641088600518,11.98442796,177.78,177.74,35.44406259]
[1641088601519,3.99452037,177.76,177.75,1.61361488]
[1641088602318,14.35710262,177.8,177.75,1.61361488]
[1641088603018,11.98442796,177.79,177.75,1.61361488]
[1641088603820,3.97799697,177.78,177.74,5.40106259]
[1641088604419,3.97799697,177.77,177.74,5.40106259]
[1641088605221,2.37267466,177.8,177.74,5.40106259]
[1641088605726,3.9780668,177.77,177.74,5.40106259]
[1641088606430,2.37267466,177.8,177.74,5.40106259]
[1641088606626,11.98442796,177.78,177.74,5.40106259]
[1641088607528,3.97850865,177.75,177.74,5.40106259]
[1641088608029,11.98442796,177.79,177.74,5.40106259]
[1641088608228,11.98442796,177.78,177.74,5.40106259]
[1641088611933,11.98442796,177.76,177.74,5.40106259]
[1641088613035,11.34966239,177.8,177.74,5.40106259]
[1641088613435,11.34966239,177.8,177.75,4.50048738]
[1641088613736,11.98577967,177.76,177.75,4.50048738]
[1641088614239,11.34966239,177.8,177.75,4.50048738]
[1641088614942,11.98576106,177.76,177.75,4.50048738]
[1641088615542,11.34966239,177.8,177.75,4.50048738]
[1641088615741,11.98574583,177.77,177.75,4.50048738]
[1641088619546,11.34966239,177.8,177.74,5.40106259]
[1641088619547,7.48556476,177.76,177.74,5.40106259]
[1641088622749,11.34966239,177.8,177.74,5.40106259]
[1641088622950,11.34966239,177.8,177.74,13.58006259]
[1641088623251,11.34966239,177.8,177.78,5.39990752]
[1641088623449,11.34966239,177.8,177.78,11.46090752]
[1641088623650,11.34966239,177.8,177.79,3.0]
[1641088623850,11.34966239,177.8,177.78,11.46090752]
[1641088624055,11.34966239,177.8,177.78,14.46090752]
[1641088624251,11.34966239,177.83,177.78,14.46090752]
[1641088624656,11.34966239,177.83,177.81,27.66479]
[1641088625053,11.34966239,177.83,177.78,5.39990752]
[1641088625353,17.02466239,177.83,177.78,9.89963576]
[1641088625554,2.37267466,177.82,177.78,9.89963576]
[1641088626452,5.675,177.83,177.78,9.89963576]
[1641088627555,2.33477645,177.82,177.78,9.89963576]
[1641088630159,5.62429696,177.79,177.78,4.49972824]
[1641088630355,12.10629696,177.79,177.74,6.48133697]
[1641088630956,2.33477645,177.78,177.74,6.48133697]
[1641088632358,3.0,177.75,177.69,27.66479]
[1641088632558,8.185,177.75,177.69,27.66479]
[1641088632760,5.185,177.75,177.68,5.40292771]
[1641088633361,32.84979,177.75,177.71,4.50151914]
[1641088633560,27.66479,177.75,177.71,4.50151914]
[1641088633762,2.33477645,177.74,177.71,4.50151914]
[1641088637971,11.24926545,177.78,177.71,4.50151914]
[1641088638170,11.24926545,177.78,177.71,9.48151914]
[1641088638669,5.62508789,177.76,177.71,9.48151914]
[1641088639271,5.62508789,177.76,177.72,1.65400365]
[1641088639872,5.62667042,177.73,177.71,4.50151914]
[1641088640079,5.6257208,177.74,177.67,32.16751237]
[1641088640673,5.6257208,177.74,177.7,4.50174176]
[1641088640875,2.34231232,177.73,177.7,4.50174176]
[1641088642577,2.34218468,177.74,177.7,4.50174176]
[1641088642779,2.34218468,177.74,177.7,10.10674176]
[1641088643377,2.34218468,177.76,177.71,1.65395855]
[1641088643575,30.00697468,177.76,177.71,1.65395855]
[1641088644477,30.00697468,177.76,177.72,4.50122438]
[1641088644877,2.34218468,177.75,177.72,4.50122438]
[1641088646177,27.66479,177.76,177.72,4.50122438]
[1641088646779,5.62477149,177.77,177.72,4.50122438]
[1641088647278,2.34186559,177.75,177.72,4.50122438]
[1641088647881,2.34186559,177.76,177.72,4.50122438]
[1641088648578,30.00665559,177.76,177.72,4.50122438]
[1641088649782,11.98735505,177.74,177.72,4.50122438]
[1641088651685,11.2503378,177.75,177.72,4.50122438]
[1641088652785,5.62619557,177.73,177.72,4.50142494]
[1641088653587,5.62619557,177.73,177.69,5.40261638]
[1641088653786,7.96806116,177.73,177.69,5.40261638]
[1641088654187,7.96806116,177.73,177.71,4.50147389]
[1641088654388,2.34186559,177.72,177.71,10.75047389]
[1641088656300,8.90847221,177.75,177.71,10.75047389]
[1641088656301,11.25036784,177.75,177.71,10.75047389]
[1641088657903,11.25036784,177.76,177.71,10.75047389]
[1641088658304,11.25036784,177.76,177.74,4.50071014]
[1641088658704,2.34189563,177.76,177.74,4.50071014]
[1641088660003,11.24935231,177.78,177.74,4.50071014]
[1641088661404,11.24935231,177.78,177.76,4.50034927]
[1641088661804,6.74942842,177.78,177.76,4.50034927]
[1641088662207,6.74942842,177.78,177.72,5.40151357]
[1641088662506,27.66479,177.79,177.72,5.40151357]
[1641088667408,27.66479,177.79,177.76,4.50042771]
[1641088668612,27.66479,177.79,177.72,5.40151357]
[1641088668808,27.66479,177.79,177.73,3.0]
[1641088669308,27.66479,177.79,177.72,5.40151357]
[1641088669510,32.58279,177.79,177.72,5.40151357]
[1641088669909,11.9851434,177.77,177.72,5.40151357]
[1641088670512,4.918,177.79,177.72,5.40151357]
[1641088670711,28.9999,177.81,177.76,3.0]
[1641088670910,5.62224159,177.85,177.76,8.421]
[1641088671213,5.62224159,177.85,177.79,32.16439231]
[1641088675319,12.8913717,177.86,177.79,32.16439231]
[1641088676017,3.95835065,177.85,177.79,32.16439231]
[1641088676223,10.01835065,177.85,177.79,32.16439231]
[1641088676419,13.21387541,177.85,177.79,32.16439231]
[1641088676620,13.21387541,177.85,177.79,4.49960231]
[1641088677023,3.95835065,177.83,177.79,4.49960231]
[1641088677422,3.95835065,177.83,177.76,59.41849]
[1641088678024,34.57085065,177.84,177.76,59.41849]
[1641088678223,40.19356642,177.84,177.76,31.7537]
[1641088678424,3.95835065,177.82,177.75,5.40065015]
[1641088679227,3.19620935,177.81,177.75,5.40065015]
[1641088679427,3.95835065,177.8,177.75,5.40065015]
[1641088679727,16.4763313,177.8,177.75,5.40065015]
[1641088680627,3.95835065,177.79,177.75,5.40065015]
[1641088680826,5.62508789,177.76,177.7,6.48280098]
[1641088681027,12.37508789,177.76,177.7,6.48280098]
[1641088681228,40.03987789,177.76,177.7,6.48280098]
[1641088681430,12.37508789,177.76,177.7,6.48280098]
[1641088681628,6.75,177.76,177.7,6.48280098]
[1641088681829,10.70835065,177.76,177.7,6.48280098]
[1641088682630,6.75,177.76,177.7,6.48280098]
[1641088684033,10.70835065,177.76,177.7,6.48280098]
[1641088684230,3.95835065,177.76,177.7,6.48280098]
[1641088684930,3.95835065,177.76,177.72,4.5012292]
[1641088685731,5.62445513,177.78,177.72,4.5012292]
[1641088685932,5.62445513,177.78,177.72,10.3412292]
[1641088686830,8.79950879,177.8,177.72,10.3412292]
[1641088687233,11.98626544,177.77,177.73,27.66479]
[1641088687833,11.98626544,177.78,177.74,4.50084309]
[1641088688234,11.98626544,177.78,177.77,4.50003897]
[1641088689433,8.79950879,177.8,177.77,4.50003897]
[1641088689634,11.9849087,177.79,177.77,4.50003897]
[1641088689834,11.9849087,177.79,177.78,4.49974084]
[1641088691237,7.48546099,177.79,177.78,4.49974084]
[1641088694540,8.79950879,177.8,177.78,4.49974084]
[1641088695641,5.62350626,177.81,177.78,4.49974084]
[1641088698144,5.62350626,177.81,177.78,9.08474084]
[1641088698342,8.2,177.89,177.78,9.08474084]
[1641088698545,5.62129346,177.88,177.78,9.08474084]
[1641088698945,8.62129346,177.88,177.78,9.08474084]
[1641088699145,57.75369,177.87,177.78,39.17254084]
[1641088699346,57.75369,177.87,177.8,33.06399967]
[1641088700948,3.97922346,177.82,177.8,33.06399967]
[1641088701848,57.75369,177.87,177.8,33.06399967]
[1641088702451,30.0889,177.87,177.8,33.06399967]
[1641088703054,3.97919606,177.82,177.8,33.06399967]
[1641088703654,2.25061978,177.86,177.8,33.06399967]
[1641088704454,3.97922069,177.82,177.8,33.06399967]
[1641088705258,2.25061978,177.86,177.8,33.06399967]
[1641088705956,10.93740537,177.86,177.8,33.06399967]
[1641088711566,10.93740537,177.86,177.8,33.06395412]
[1641088716973,10.93740537,177.86,177.83,4.49851321]
[1641088720976,10.93740537,177.86,177.83,9.43251321]
[1641088723176,11.98175597,177.84,177.83,9.43251321]
[1641088723980,2.25061978,177.86,177.83,9.43251321]
[1641088724977,2.25061978,177.86,177.85,4.49797219]
[1641088725877,14.23237575,177.87,177.85,4.49797219]
[1641088726779,10.93715767,177.87,177.86,4.49771809]
[1641088744297,15.31415767,177.87,177.81,9.897736]
[1641088744697,18.50943114,177.87,177.81,9.897736]
[1641088745195,15.31415767,177.87,177.81,9.897736]
[1641088745395,11.98236483,177.82,177.81,9.897736]
[1641088746096,27.66479,177.84,177.81,9.897736]
[1641088746298,11.98203144,177.83,177.81,9.897736]
[1641088746899,11.98203144,177.82,177.81,9.897736]
[1641088747598,2.25061978,177.83,177.81,9.897736]
[1641088747799,14.218493,177.83,177.81,9.897736]
[1641088748200,11.96787322,177.83,177.81,9.897736]
[1641088749001,14.218493,177.83,177.81,9.897736]
[1641088749501,11.96787322,177.83,177.81,9.897736]
[1641088751908,39.63266322,177.84,177.81,9.897736]
[1641088752909,2.25061978,177.83,177.81,9.897736]
[1641088754312,39.63266322,177.84,177.83,2.24803847]
[1641088754512,39.63266322,177.84,177.81,5.39875921]
[1641088754814,11.96787322,177.83,177.81,5.39875921]
[1641088755416,27.66479,177.84,177.81,5.39875921]
[1641088756215,11.98207914,177.83,177.81,5.39875921]
[1641088759819,11.98207914,177.83,177.82,4.49874983]
[1641088760920,27.66479,177.84,177.82,4.49874983]
[1641088761121,8.63343925,177.83,177.82,4.49874983]
[1641088761721,27.66479,177.84,177.82,4.49874983]
[1641088761922,7.48395635,177.83,177.81,5.39875921]
[1641088762121,7.48395635,177.83,177.82,4.161]
[1641088762724,27.66479,177.84,177.82,4.161]
[1641088763722,21.27428624,177.84,177.82,4.161]
[1641088767024,8.67824455,177.85,177.82,4.161]
[1641088767223,8.67824455,177.85,177.81,5.39875921]
[1641088768425,35.92479,177.86,177.81,5.39875921]
[1641088768625,35.92479,177.86,177.81,9.56475921]
[1641088768825,8.26,177.86,177.81,9.56475921]
[1641088769024,8.67824455,177.85,177.81,9.56475921]
[1641088769824,8.26,177.86,177.81,9.56475921]
[1641088772226,8.26,177.86,177.82,4.49873]
[1641088772426,35.92479,177.86,177.82,4.49873]
[1641088773129,8.67824455,177.85,177.82,4.49873]
[1641088778434,27.66479,177.83,177.82,4.49873]
[1641088780537,36.34306117,177.83,177.82,4.49873]
[1641088781340,27.66479,177.83,177.82,4.49873]
[1641088781741,35.92479,177.86,177.82,4.49873]
[1641088782640,41.54671551,177.86,177.82,4.49873]
[1641088782841,8.67783146,177.85,177.82,4.49873]
[1641088789550,8.67783146,177.85,177.84,4.49835116]
[1641088789751,8.67783146,177.85,177.84,10.34935116]
[1641088790257,5.62066155,177.9,177.85,1.21748264]
[1641088790451,53.46445937,177.93,177.85,1.21748264]
[1641088790652,53.46445937,177.93,177.85,33.2988]
[1641088790851,61.84445937,177.93,177.85,30.2988]
[1641088791054,26.52016993,177.93,177.85,30.2988]
[1641088791254,3.19454264,177.92,177.85,30.2988]
[1641088792653,11.97916876,177.88,177.85,30.2988]
[1641088792852,11.97916876,177.88,177.84,5.851]
[1641088794755,11.97916876,177.88,177.83,30.66479]
[1641088795158,11.97916876,177.88,177.83,27.66479]
[1641088795860,11.97916876,177.88,177.86,4.49776172]
[1641088796160,11.97916876,177.89,177.86,10.58176172]
[1641088796861,11.97916876,177.89,177.88,4.49720781]
[1641088797861,14.97916876,177.89,177.81,11.97916876]
[1641088798062,3.0,177.87,177.81,11.97916876]
[1641088798261,3.0,177.87,177.78,35.88448987]
[1641088798262,33.1387,177.88,177.8,11.97916876]
[1641088798464,38.9787,177.88,177.8,11.97916876]
[1641088798663,3.19519799,177.87,177.8,11.97916876]
[1641088798965,11.97916876,177.84,177.79,1.8162837]
[1641088801671,11.97916876,177.84,177.81,4.49910261]
[1641088801872,2.17666912,177.86,177.81,4.49910261]
[1641088801873,11.97916876,177.83,177.81,4.49910261]
[1641088803372,11.97916876,177.84,177.78,31.3847]
[1641088803774,11.97916876,177.84,177.79,4.49962925]
[1641088804173,11.97916876,177.84,177.79,6.3159187]
[1641088804974,11.97916876,177.84,177.8,1.81628945]
[1641088807480,11.97916876,177.85,177.82,4.49889816]
[1641088807880,11.97916876,177.85,177.83,4.49861711]
[1641088809686,14.97916876,177.85,177.79,27.66479]
[1641088809886,17.74616876,177.85,177.78,35.88448142]
[1641088810790,17.74616876,177.85,177.79,1.81627565]
[1641088810988,2.17666912,177.84,177.79,1.81627565]
[1641088812292,3.99420447,177.8,177.79,1.81627565]
[1641088812590,10.20320447,177.8,177.79,1.81627565]
[1641088814190,3.99420447,177.8,177.79,1.81627565]
[1641088814991,42.64166876,177.84,177.79,1.81627565]
[1641088815192,14.15717826,177.83,177.79,1.81627565]
[1641088815390,14.15717826,177.83,177.8,4.49923534]
[1641088816898,11.97916876,177.83,177.8,4.49923534]
[1641088819700,11.97916876,177.83,177.82,4.49891782]
[1641088820800,11.97916876,177.84,177.82,4.49891782]
[1641088821999,14.15717826,177.85,177.82,4.49891782]
[1641088823306,2.1780095,177.85,177.82,4.49891782]
[1641088823505,11.97916876,177.86,177.85,2.32004502]
[1641088823703,11.97916876,177.86,177.82,9.87864381]
[1641088826706,11.97916876,177.86,177.79,27.66479]
[1641088827805,3.99181502,177.82,177.79,27.66479]
[1641088828205,3.99181502,177.82,177.78,35.33847851]
[1641088828605,3.99181502,177.82,177.78,5.39967851]
[1641088828805,3.99202959,177.8,177.78,5.39967851]
[1641088829408,3.99202959,177.8,177.75,11.97916876]
[1641088829809,27.66479,177.81,177.75,11.97916876]
[1641088830008,27.66479,177.81,177.74,29.6936]
[1641088831111,3.9948788,177.76,177.74,29.6936]
[1641088831311,3.9948788,177.76,177.72,39.64395876]
[1641088831711,31.5187,177.79,177.72,27.66479]
[1641088832811,3.99494424,177.76,177.72,27.66479]
[1641088833212,3.99494424,177.76,177.71,11.97916876]
[1641088833613,31.5187,177.79,177.71,11.97916876]
[1641088833914,27.66479,177.78,177.71,11.97916876]
[1641088834912,3.99498104,177.76,177.71,19.53788268]
[1641088836216,31.5187,177.79,177.71,19.53788268]
[1641088836417,3.994813,177.77,177.72,11.97916876]
[1641088837119,31.5187,177.79,177.73,11.97916876]
[1641088838017,3.99479512,177.77,177.73,11.97916876]
[1641088838621,31.5187,177.79,177.73,11.97916876]
[1641088839322,31.5187,177.79,177.74,5.40112939]
[1641088839521,3.99478674,177.77,177.74,5.40112939]
[1641088840121,3.9946947,177.78,177.74,5.40112939]
[1641088840622,31.5187,177.79,177.74,5.40112939]
[1641088840822,20.39916876,177.82,177.74,5.40112939]
[1641088841023,49.27556876,177.82,177.74,36.18962939]
[1641088841224,40.85556876,177.82,177.74,36.18962939]
[1641088841525,11.97916876,177.82,177.77,5.39998049]
[1641088841823,3.99457514,177.78,177.77,11.75998049]
[1641088843026,3.99431869,177.79,177.77,11.75998049]
[1641088843626,17.6022007,177.83,177.77,11.75998049]
[1641088844626,3.99430087,177.79,177.77,11.75998049]
[1641088845228,3.99430104,177.8,177.77,11.75998049]
[1641088845934,5.62303194,177.83,177.77,11.75998049]
[1641088846836,3.99429084,177.8,177.77,11.75998049]
[1641088847635,5.62303194,177.83,177.77,11.75998049]
[1641088847836,3.0,177.81,177.77,6.36]
[1641088848036,3.0,177.81,177.75,11.97916876]
[1641088848236,27.66479,177.79,177.75,11.97916876]
[1641088848435,31.63947255,177.79,177.73,6.48163889]
[1641088849035,27.66479,177.79,177.73,6.48163889]
[1641088849436,27.66479,177.79,177.74,4.50092697]
[1641088850039,31.63967273,177.79,177.74,4.50092697]
[1641088850238,3.97488273,177.79,177.77,4.50019083]
[1641088850736,14.98290312,177.8,177.77,4.50019083]
[1641088850939,14.98290312,177.8,177.73,34.14642889]
[1641088851139,11.98290312,177.8,177.73,34.14642889]
[1641088851342,11.98290312,177.8,177.73,6.48163889]
[1641088851539,3.99524635,177.75,177.73,6.48163889]
[1641088852341,3.99525839,177.74,177.73,6.48163889]
[1641088853443,3.99522185,177.75,177.73,6.48163889]
[1641088854044,11.98566556,177.79,177.73,6.48163889]
[1641088854844,3.9952324,177.75,177.73,6.48163889]
[1641088855444,11.98566556,177.79,177.73,6.48163889]
[1641088855847,14.98566556,177.79,177.72,27.66479]
[1641088856145,11.98566556,177.79,177.72,27.66479]
[1641088856345,3.99511585,177.75,177.72,27.66479]
[1641088856848,3.99531665,177.74,177.72,27.66479]
[1641088857547,30.6339,177.77,177.72,27.66479]
[1641088858447,3.99527632,177.74,177.72,27.66479]
[1641088858748,3.99527632,177.74,177.71,4.50160027]
[1641088859449,30.6339,177.77,177.71,4.50160027]
[1641088860150,3.99544015,177.74,177.71,4.50160027]
[1641088860454,3.99544015,177.74,177.7,24.03997648]
[1641088860651,3.99544015,177.74,177.7,27.03997648]
[1641088860851,30.6339,177.77,177.7,27.03997648]
[1641088861051,30.6339,177.77,177.7,19.48107891]
[1641088861751,3.99514644,177.76,177.71,11.97916876]
[1641088862052,3.99514644,177.76,177.73,4.50110217]
[1641088862551,30.6339,177.77,177.73,4.50110217]
[1641088863154,3.99511643,177.76,177.73,4.50110217]
[1641088864252,30.6339,177.77,177.74,1.83575954]
[1641088865052,3.99510096,177.76,177.74,1.83575954]
[1641088865754,29.7102,177.79,177.74,1.83575954]
[1641088865955,29.7102,177.79,177.74,6.33663702]
[1641088866653,3.99509348,177.76,177.74,6.33663702]
[1641088867152,3.99509139,177.75,177.74,4.50087748]
[1641088868055,2.15933224,177.78,177.74,4.50087748]
[1641088868658,3.99505646,177.75,177.74,4.50087748]
[1641088869360,29.7102,177.79,177.74,4.50087748]
[1641088869561,2.15928683,177.78,177.74,4.50087748]
[1641088869961,3.99504698,177.75,177.74,4.50087748]
[1641088870160,41.69534094,177.79,177.77,0.50510611]
[1641088870560,29.7102,177.79,177.73,32.16589217]
[1641088870763,2.12331635,177.78,177.73,32.16589217]
[1641088871362,2.12331635,177.78,177.74,5.40102343]
[1641088871863,29.7102,177.79,177.74,5.40102343]
[1641088872663,2.15918856,177.78,177.74,5.40102343]
[1641088873267,29.7102,177.79,177.74,5.40102343]
[1641088873965,2.15918048,177.78,177.74,5.40102343]
[1641088874670,29.7102,177.79,177.74,5.40102343]
[1641088875369,29.7102,177.79,177.76,5.40036877]
[1641088875570,8.52,177.81,177.76,5.40036877]
[1641088875771,8.52,177.81,177.79,4.49952764]
[1641088876169,2.15557775,177.8,177.79,4.49952764]
[1641088878069,2.15557775,177.8,177.79,7.49952764]
[1641088878271,17.60715032,177.83,177.79,7.49952764]
[1641088878272,11.98411838,177.83,177.82,4.498849]
[1641088878470,2.08864317,177.83,177.82,8.302]
[1641088878671,2.08864317,177.83,177.82,5.302]
[1641088879073,13.65075302,177.91,177.82,32.96679]
[1641088879473,5.62145146,177.88,177.82,5.302]
[1641088879674,5.62145146,177.88,177.8,27.66479]
[1641088879875,36.64205146,177.88,177.8,27.66479]
[1641088880075,31.0206,177.88,177.8,27.66479]
[1641088880475,3.0,177.84,177.8,27.66479]
[1641088880778,6.781,177.84,177.8,27.66479]
[1641088881074,6.781,177.84,177.77,27.66479]
[1641088881275,6.781,177.84,177.75,31.5365]
[1641088882074,6.781,177.84,177.76,7.65412808]
[1641088883177,6.781,177.84,177.77,27.66479]
[1641088884177,6.781,177.84,177.79,4.4996495]
[1641088885578,27.66479,177.87,177.79,4.4996495]
[1641088886281,27.66479,177.87,177.81,4.49894696]
[1641088886982,27.66479,177.87,177.82,4.49869681]
[1641088887582,31.0206,177.88,177.82,4.49869681]
[1641088888281,31.0206,177.88,177.83,4.49843214]
[1641088890387,5.6225577,177.84,177.8,4.49938115]
[1641088890586,3.0,177.82,177.75,38.01738266]
[1641088890987,3.0,177.81,177.75,6.48088266]
[1641088891590,27.66479,177.79,177.75,6.48088266]
[1641088891893,32.72879,177.79,177.75,6.48088266]
[1641088894291,5.62492969,177.77,177.7,5.40212169]
[1641088894492,3.0,177.76,177.7,5.40212169]
[1641088894896,3.0,177.75,177.67,66.42883862]
[1641088895093,6.841,177.75,177.67,37.29513862]
[1641088895494,6.841,177.75,177.67,5.40315954]
[1641088895694,30.66479,177.74,177.67,5.40315954]
[1641088895893,27.66479,177.74,177.67,5.40315954]
[1641088896093,30.66479,177.74,177.67,5.40315954]
[1641088896295,27.66479,177.74,177.67,5.40315954]
[1641088897294,27.66479,177.74,177.67,8.40315954]
[1641088897594,27.66479,177.74,177.67,5.40315954]
[1641088900401,27.66479,177.74,177.68,4.50226387]
[1641088903603,3.0,177.76,177.68,4.50226387]
[1641088904308,3.0,177.76,177.7,4.5017899]
[1641088906006,27.66479,177.74,177.7,4.5017899]
[1641088906807,41.64971969,177.77,177.73,4.50120129]
[1641088907007,41.64971969,177.77,177.73,9.75520129]
[1641088907212,33.28971969,177.77,177.73,9.75520129]
[1641088911917,36.28971969,177.77,177.73,5.254]
[1641088912118,36.28971969,177.77,177.67,17.61725609]
[1641088912315,36.28971969,177.77,177.67,10.80625609]
[1641088912516,33.28971969,177.77,177.67,10.80625609]
[1641088913916,45.14881199,177.77,177.68,11.8590923]
[1641088914116,45.14881199,177.77,177.68,18.3190923]
[1641088914820,45.14881199,177.77,177.69,11.8590923]
[1641088915720,11.8590923,177.76,177.68,11.8590923]
[1641088915920,27.66479,177.74,177.7,4.50193938]
[1641088918521,27.66479,177.74,177.71,1.97996892]
[1641088919121,2.01609315,177.73,177.71,1.97996892]
[1641088919720,27.66479,177.74,177.71,1.97996892]
[1641088923527,27.66479,177.74,177.72,4.50142886]
[1641088924127,27.66479,177.74,177.73,1.97996892]
[1641088925332,29.6807744,177.74,177.73,1.97996892]
[1641088927132,29.6807744,177.74,177.72,4.50142886]
[1641088927635,2.0159844,177.74,177.72,4.50142886]
[1641088927937,11.8590923,177.76,177.74,2.48479284]
[1641088928135,11.8590923,177.77,177.74,5.153]
[1641088928835,17.48291481,177.8,177.74,5.153]
[1641088929838,5.62382251,177.8,177.74,5.153]
[1641088930336,5.62382251,177.8,177.73,69.5504823]
[1641088930540,3.99487943,177.78,177.73,69.5504823]
[1641088930735,3.99487943,177.78,177.73,39.5238823]
[1641088930940,3.99487943,177.78,177.73,11.8590923]
[1641088931136,10.17187943,177.78,177.73,11.8590923]
[1641088931338,3.99487943,177.77,177.72,11.8590923]
[1641088932139,3.99487943,177.76,177.72,11.8590923]
[1641088933539,3.99487943,177.76,177.75,4.50056741]
[1641088934949,3.99487943,177.77,177.75,4.50056741]
[1641088935744,3.99487943,177.76,177.75,4.50056741]
[1641088936441,27.66479,177.79,177.75,4.50056741]
[1641088937343,3.99520118,177.77,177.75,4.50056741]
[1641088938045,27.66479,177.79,177.75,4.50056741]
[1641088938644,3.99528839,177.76,177.75,4.50056741]
[1641088939344,27.66479,177.79,177.75,4.50056741]
[1641088939545,17.48291481,177.8,177.75,4.50056741]
[1641088939946,3.99528644,177.76,177.75,4.50056741]
[1641088940548,27.66479,177.78,177.75,4.50056741]
[1641088941751,5.6252461,177.76,177.72,11.8590923]
[1641088942150,9.62052712,177.76,177.72,11.8590923]
[1641088942751,3.99590622,177.73,177.71,5.40188161]
[1641088943052,3.99590622,177.73,177.69,31.3371]
[1641088943250,3.99590622,177.73,177.68,39.5238823]
[1641088943450,3.99590622,177.73,177.7,4.50192668]
[1641088943650,3.99599586,177.72,177.7,4.50192668]
[1641088944358,17.4843384,177.76,177.7,4.50192668]
[1641088944554,3.99591264,177.73,177.7,4.50192668]
[1641088945155,27.66479,177.75,177.7,4.50192668]
[1641088945660,3.99581605,177.73,177.7,4.50192668]
[1641088946261,27.66479,177.75,177.7,4.50192668]
[1641088946464,3.99595409,177.72,177.7,4.50192668]
[1641088946663,3.99595409,177.72,177.71,4.50159371]
[1641088947063,3.99591126,177.73,177.71,4.50159371]
[1641088947864,27.66479,177.75,177.71,4.50159371]
[1641088948566,3.9959086,177.73,177.71,4.50159371]
[1641088949171,27.66479,177.75,177.74,0.50502796]
[1641088949569,27.66479,177.75,177.72,6.47]
[1641088950169,21.27182823,177.75,177.72,6.47]
[1641088951171,21.27182823,177.75,177.71,11.8590923]
[1641088951370,21.27182823,177.75,177.7,16.36101898]
[1641088951770,5.6252461,177.76,177.7,21.76311172]
[1641088951970,5.6252461,177.76,177.7,17.26118504]
[1641088952272,43.67613377,177.78,177.7,17.26118504]
[1641088952671,71.34092377,177.78,177.7,17.26118504]
[1641088953176,71.34092377,177.78,177.71,11.8590923]
[1641088953177,59.35319,177.78,177.71,11.8590923]
[1641088953776,31.6884,177.78,177.71,11.8590923]
[1641088954678,31.6884,177.78,177.72,11.8590923]
[1641088954975,31.6884,177.78,177.75,4.500489]
[1641088955177,45.27650442,177.8,177.76,4.50023068]
[1641088956177,33.28877065,177.8,177.76,4.50023068]
[1641088958482,45.27650442,177.8,177.76,4.50023068]
[1641088963595,39.65252377,177.8,177.76,4.50023068]
[1641088963794,27.66479,177.8,177.76,4.50023068]
[1641088965497,11.98773377,177.82,177.76,4.50023068]
[1641088965897,11.98773377,177.83,177.76,4.50023068]
[1641088966297,11.98773377,177.83,177.79,4.49969033]
[1641088967200,11.98773377,177.82,177.79,4.49969033]
[1641088967900,11.98773377,177.81,177.79,4.49969033]
[1641088969001,39.65252377,177.81,177.79,4.49969033]
[1641088969202,11.98773377,177.82,177.79,4.49969033]
[1641088970104,27.66479,177.84,177.8,4.49930967]
[1641088970901,27.66479,177.84,177.81,4.49897648]
[1641088971705,27.66479,177.84,177.78,4.4998746]
[1641088973306,27.66479,177.84,177.8,4.49926353]
[1641088973706,2.01742464,177.83,177.8,4.49926353]
[1641088974607,2.01742464,177.83,177.81,1.9767032]
[1641088976508,27.66479,177.84,177.81,1.9767032]
[1641088977110,2.01742464,177.83,177.81,1.9767032]
[1641088982516,2.01742464,177.83,177.8,4.49926353]
[1641088985017,2.01742464,177.83,177.82,4.49885193]